fUST/lending_fUST_20241025
["ID","MTS","AMOUNT","RATE_DAILY","PERIOD"]
[340790345,1729828242721,-671.55,0.00013698,2]
[340790346,1729828242730,-151.0,0.00013698,2]
[340790347,1729828242740,-151.0,0.00013698,2]
[340790348,1729828242751,-151.0,0.00013698,2]
[340790349,1729828242762,-1111.96,0.00013698,2]
[340790350,1729828242771,-151.0,0.00013698,2]
[340790351,1729828242781,-151.0,0.00013698,2]
[340790352,1729828242791,-151.0,0.00013698,2]
[340790353,1729828242802,-500.0,0.00013698,2]
[340790354,1729828242812,-710.94,0.00013698,2]
[340790355,1729828242822,-732.74,0.00013698,2]
[340790356,1729828242831,-667.79,0.00013698,2]
[340790357,1729828242842,-1064.26,0.00013698,2]
[340790358,1729828242852,-500.0,0.00013698,2]
[340790359,1729828242862,-539.62547449,0.00013698,2]
[340790360,1729828242871,-500.0,0.00013698,2]
[340790361,1729828242881,-500.0,0.00013698,2]
[340790362,1729828242891,-500.0,0.00013698,2]
[340790363,1729828242901,-500.0,0.00013698,2]
[340790364,1729828242912,-500.0,0.00013698,2]
[340790365,1729828242925,-500.0,0.00013698,2]
[340790366,1729828242935,-517.39104744,0.00013698,2]
[340790367,1729828242945,-500.0,0.00013698,2]
[340790368,1729828242955,-500.0,0.00013698,2]
[340790369,1729828242967,-193.44270171,0.00013698,2]
[340790370,1729828242978,-358.47064728,0.00013698,2]
[340790371,1729828242990,-529.55,0.00013698,2]
[340790372,1729828243000,-852.14,0.00013698,2]
[340790373,1729828243011,-500.0,0.00013698,2]
[340790374,1729828243021,-171.06949716,0.00013698,2]
[340790375,1729828243031,-683.45,0.00013698,2]
[340790376,1729828243040,-459.707949,0.00013698,2]
[340790377,1729828243051,-459.707949,0.00013698,2]
[340790379,1729828243062,-459.707949,0.00013698,2]
[340790380,1729828243072,-1415.03,0.00013698,2]
[340790381,1729828243082,-646.11,0.00013698,2]
[340790382,1729828243092,-722.04,0.00013698,2]
[340790383,1729828243102,-158.055035,0.00013698,2]
[340790384,1729828243112,-500.0,0.00013698,2]
[340790385,1729828243122,-1886.94,0.00013698,2]
[340790386,1729828243132,-500.0,0.00013698,2]
[340790387,1729828243142,-470.12616714,0.00013698,2]
[340790388,1729828243153,-500.0,0.00013698,2]
[340790389,1729828243163,-198.906741,0.00013698,2]
[340790390,1729828243173,-198.906741,0.00013698,2]
[340790392,1729828243184,-198.906741,0.00013698,2]
[340790394,1729828243194,-198.906741,0.00013698,2]
[340790396,1729828243204,-500.0,0.00013698,2]
[340790398,1729828243213,-198.906741,0.00013698,2]
[340790400,1729828243224,-198.906741,0.00013698,2]
[340790402,1729828243235,-1369.68,0.00013698,2]
[340790403,1729828243244,-500.0,0.00013698,2]
[340790404,1729828243255,-500.0,0.00013698,2]
[340790405,1729828243264,-910.73,0.00013698,2]
[340790407,1729828243274,-979.4,0.00013698,2]
[340790409,1729828243284,-863.86,0.00013698,2]
[340790412,1729828243294,-195.19488849,0.00013698,2]
[340790414,1729828243304,-500.0,0.00013698,2]
[340790416,1729828243313,-693.705385,0.00013698,2]
[340790418,1729828243323,-693.705385,0.00013698,2]
[340790421,1729828243334,-693.705385,0.00013698,2]
[340790424,1729828243345,-693.705385,0.00013698,2]
[340790427,1729828243355,-693.705385,0.00013698,2]
[340790430,1729828243365,-693.705385,0.00013698,2]
[340790432,1729828243376,-500.0,0.00013698,2]
[340790434,1729828243385,-693.705385,0.00013698,2]
[340790436,1729828243396,-693.705385,0.00013698,2]
[340790438,1729828243407,-1570.24,0.00013698,2]
[340790441,1729828243416,-2324.22,0.00013698,2]
[340790445,1729828243426,-290.27726149,0.00013698,2]
[340790448,1729828243435,-151.0,0.00013698,2]
[340790451,1729828243445,-151.0,0.00013698,2]
[340790454,1729828243455,-198.273856,0.00013698,2]
[340790457,1729828243464,-151.0,0.00013698,2]
[340790480,1729828243677,-151.0,0.00013698,2]
[340790482,1729828243687,-901.39,0.00013698,2]
[340790484,1729828243697,-151.0,0.00013698,2]
[340790486,1729828243707,-151.0,0.00013698,2]
[340790488,1729828243718,-1039.64829,0.00013698,2]
[340790490,1729828243727,-1039.64829,0.00013698,2]
[340790492,1729828243737,-1039.64829,0.00013698,2]
[340790494,1729828243746,-1039.64829,0.00013698,2]
[340790496,1729828243756,-699.13,0.00013698,2]
[340790498,1729828243766,-864.5,0.00013698,2]
[340790500,1729828243776,-500.0,0.00013698,2]
[340790502,1729828243785,-2203.78,0.00013698,2]
[340790504,1729828243795,-500.0,0.00013698,2]
[340790506,1729828243805,-2620.064115,0.00013698,2]
[340790508,1729828243814,-500.0,0.00013698,2]
[340790510,1729828243824,-1014.07,0.00013698,2]
[340790512,1729828243833,-500.0,0.00013698,2]
[340790514,1729828243848,-652.12,0.00013698,2]
[340790516,1729828243858,-309.65965,0.00013698,2]
[340790518,1729828243868,-309.65965,0.00013698,2]
[340790519,1729828243878,-2034.9,0.00013698,2]
[340790520,1729828243890,-500.0,0.00013698,2]
[340790521,1729828243900,-309.65965,0.00013698,2]
[340790522,1729828243911,-1234.24,0.00013698,2]
[340790523,1729828243920,-309.65965,0.00013698,2]
[340790524,1729828243931,-309.65965,0.00013698,2]
[340790525,1729828243941,-783.22,0.00013698,2]
[340790526,1729828243950,-500.0,0.00013698,2]
[340790527,1729828243960,-309.65965,0.00013698,2]
[340790528,1729828243970,-309.65965,0.00013698,2]
[340790530,1729828243980,-309.65965,0.00013698,2]
[340790532,1729828243990,-500.0,0.00013698,2]
[340790534,1729828243999,-309.65965,0.00013698,2]
[340790536,1729828244008,-309.65965,0.00013698,2]
[340790538,1729828244018,-597.61,0.00013698,2]
[340790540,1729828244029,-358.392866,0.00013698,2]
[340790542,1729828244042,-358.392866,0.00013698,2]
[340790544,1729828244051,-712.82,0.00013698,2]
[340790546,1729828244061,-936.38,0.00013698,2]
[340790548,1729828244071,-358.392866,0.00013698,2]
[340790550,1729828244080,-946.36,0.00013698,2]
[340790553,1729828244090,-358.392866,0.00013698,2]
[340790555,1729828244105,-358.392866,0.00013698,2]
[340790557,1729828244115,-1568.51,0.00013698,2]
[340790559,1729828244124,-358.392866,0.00013698,2]
[340790561,1729828244135,-358.392866,0.00013698,2]
[340790563,1729828244146,-358.392866,0.00013698,2]
[340790565,1729828244156,-1050.31,0.00013698,2]
[340790567,1729828244166,-358.392866,0.00013698,2]
[340790569,1729828244175,-358.392866,0.00013698,2]
[340790571,1729828244185,-151.0,0.00013698,2]
[340790573,1729828244196,-151.0,0.00013698,2]
[340790575,1729828244206,-500.0,0.00013698,2]
[340790577,1729828244215,-251.929847,0.00013698,2]
[340790579,1729828244225,-746.46,0.00013698,2]
[340790581,1729828244235,-500.0,0.00013698,2]
[340790583,1729828244244,-1412.79,0.00013698,2]
[340790585,1729828244254,-1337.15,0.00013698,2]
[340790587,1729828244264,-1369.15,0.00013698,2]
[340790589,1729828244275,-500.0,0.00013698,2]
[340790591,1729828244285,-1708.333963,0.00013698,2]
[340790593,1729828244294,-1446.08,0.00013698,2]
[340790595,1729828244304,-1708.333963,0.00013698,2]
[340790597,1729828244314,-1708.333963,0.00013698,2]
[340790599,1729828244325,-500.0,0.00013698,2]
[340790601,1729828244335,-1708.333963,0.00013698,2]
[340790604,1729828244347,-151.0,0.00013698,2]
[340790606,1729828244357,-1708.333963,0.00013698,2]
[340790608,1729828244367,-954.52,0.00013698,2]
[340790610,1729828244376,-151.0,0.00013698,2]
[340790612,1729828244385,-151.0,0.00013698,2]
[340790614,1729828244395,-151.0,0.00013698,2]
[340790616,1729828244404,-151.0,0.00013698,2]
[340790618,1729828244413,-151.0,0.00013698,2]
[340790620,1729828244423,-1708.333963,0.00013698,2]
[340790622,1729828244432,-288.896661,0.00013698,2]
[340790624,1729828244442,-1708.333963,0.00013698,2]
[340790626,1729828244451,-1708.333963,0.00013698,2]
[340790628,1729828244461,-1708.333963,0.00013698,2]
[340790630,1729828244471,-1708.333963,0.00013698,2]
[340790632,1729828244481,-926.81,0.00013698,2]
[340790634,1729828244490,-515.12,0.00013698,2]
[340790636,1729828244501,-162.72405479,0.00013698,2]
[340790638,1729828244512,-517.24,0.00013698,2]
[340790640,1729828244522,-742.39,0.00013698,2]
[340790642,1729828244532,-500.0,0.00013698,2]
[340790643,1729828244542,-1079.5,0.00013698,2]
[340790644,1729828244552,-500.0,0.00013698,2]
[340790646,1729828244562,-500.03,0.00013698,2]
[340790648,1729828244572,-950.1,0.00013698,2]
[340790650,1729828244582,-25374.18,0.00013698,2]
[340790653,1729828244595,-1351.61,0.00013698,2]
[340790655,1729828244604,-500.0,0.00013698,2]
[340790657,1729828244615,-500.0,0.00013698,2]
[340790659,1729828244625,-500.0,0.00013698,2]
[340790661,1729828244636,-151.0,0.00013698,2]
[340790663,1729828244646,-151.0,0.00013698,2]
[340790665,1729828244656,-289.972794,0.00013698,2]
[340790667,1729828244667,-1374.11,0.00013698,2]
[340790669,1729828244677,-500.0,0.00013698,2]
[340790671,1729828244686,-500.0,0.00013698,2]
[340790673,1729828244696,-260.593652,0.00013698,2]
[340790675,1729828244706,-260.593652,0.00013698,2]
[340790677,1729828244716,-260.593652,0.00013698,2]
[340790679,1729828244726,-260.593652,0.00013698,2]
[340790681,1729828244736,-260.593652,0.00013698,2]
[340790683,1729828244746,-4422.86,0.00013698,2]
[340790685,1729828244756,-260.593652,0.00013698,2]
[340790687,1729828244765,-260.593652,0.00013698,2]
[340790689,1729828244775,-260.593652,0.00013698,2]
[340790691,1729828244785,-260.593652,0.00013698,2]
[340790694,1729828244796,-1083.47,0.00013698,2]
[340790696,1729828244806,-260.593652,0.00013698,2]
[340790697,1729828244816,-157.456244,0.00013698,2]
[340790699,1729828244826,-500.0,0.00013698,2]
[340790701,1729828244835,-500.0,0.00013698,2]
[340790704,1729828244847,-4344.59,0.00013698,2]
[340790706,1729828244857,-500.0,0.00013698,2]
[340790708,1729828244867,-806.56,0.00013698,2]
[340790710,1729828244877,-1226.59,0.00013698,2]
[340790712,1729828244887,-500.0,0.00013698,2]
[340790714,1729828244897,-500.0,0.00013698,2]
[340790716,1729828244907,-500.0,0.00013698,2]
[340790718,1729828244917,-500.0,0.00013698,2]
[340790720,1729828244928,-151.0,0.00013698,2]
[340790722,1729828244940,-152.611521,0.00013698,2]
[340790724,1729828244950,-151.0,0.00013698,2]
[340790726,1729828244961,-152.755083,0.00013698,2]
[340790728,1729828244971,-500.0,0.00013698,2]
[340790730,1729828244981,-1768.57,0.00013698,2]
[340790732,1729828244993,-610.05072762,0.00013698,2]
[340790735,1729828245005,-1093.91,0.00013698,2]
[340790737,1729828245016,-500.0,0.00013698,2]
[340790739,1729828245025,-500.0,0.00013698,2]
[340790740,1729828245037,-500.0,0.00013698,2]
[340790742,1729828245047,-500.0,0.00013698,2]
[340790745,1729828245057,-500.0,0.00013698,2]
[340790746,1729828245067,-500.0,0.00013698,2]
[340790748,1729828245078,-500.0,0.00013698,2]
[340790750,1729828245088,-500.0,0.00013698,2]
[340790752,1729828245100,-250.0,0.00013698,2]
[340790754,1729828245111,-303.86672811,0.00013698,2]
[340790756,1729828245121,-151.0,0.00013698,2]
[340790758,1729828245131,-151.0,0.00013698,2]
[340790760,1729828245141,-151.0,0.00013698,2]
[340790762,1729828245150,-151.0,0.00013698,2]
[340790764,1729828245160,-151.0,0.00013698,2]
[340790766,1729828245169,-242.658676,0.00013698,2]
[340790768,1729828245179,-242.658676,0.00013698,2]
[340790770,1729828245189,-242.658676,0.00013698,2]
[340790772,1729828245199,-1741.37,0.00013698,2]
[340790774,1729828245211,-242.658676,0.00013698,2]
[340790776,1729828245220,-242.658676,0.00013698,2]
[340790778,1729828245230,-151.0,0.00013698,2]
[340790780,1729828245241,-151.0,0.00013698,2]
[340790782,1729828245250,-151.0,0.00013698,2]
[340790784,1729828245261,-1867.7,0.00013698,2]
[340790786,1729828245270,-208.251043,0.00013698,2]
[340790788,1729828245281,-151.343935,0.00013698,2]
[340790791,1729828245291,-1078.67,0.00013698,2]
[340790793,1729828245301,-242.658676,0.00013698,2]
[340790794,1729828245311,-200.762276,0.00013698,2]
[340790796,1729828245321,-242.658676,0.00013698,2]
[340790798,1729828245330,-200.762276,0.00013698,2]
[340790800,1729828245340,-242.658676,0.00013698,2]
[340790802,1729828245350,-200.762276,0.00013698,2]
[340790804,1729828245359,-242.658676,0.00013698,2]
[340790806,1729828245369,-200.762276,0.00013698,2]
[340790808,1729828245381,-242.658676,0.00013698,2]
[340790810,1729828245391,-200.762276,0.00013698,2]
[340790812,1729828245401,-200.762276,0.00013698,2]
[340790814,1729828245411,-200.762276,0.00013698,2]
[340790816,1729828245422,-200.762276,0.00013698,2]
[340790819,1729828245433,-200.762276,0.00013698,2]
[340790821,1729828245443,-200.762276,0.00013698,2]
[340790823,1729828245454,-500.0,0.00013698,2]
[340790825,1729828245464,-500.0,0.00013698,2]
[340790826,1729828245474,-161.909786,0.00013698,2]
[340790829,1729828245484,-161.909786,0.00013698,2]
[340790831,1729828245494,-151.0,0.00013698,2]
[340790833,1729828245505,-161.909786,0.00013698,2]
[340790835,1729828245515,-151.0,0.00013698,2]
[340790837,1729828245525,-161.909786,0.00013698,2]
[340790839,1729828245535,-153.569316,0.00013698,2]
[340790841,1729828245546,-161.909786,0.00013698,2]
[340790843,1729828245557,-513.79,0.00013698,2]
[340790845,1729828245567,-1566.02,0.00013698,2]
[340790847,1729828245576,-500.0,0.00013698,2]
[340790849,1729828245586,-500.0,0.00013698,2]
[340790851,1729828245596,-500.0,0.00013698,2]
[340790853,1729828245605,-161.909786,0.00013698,2]
[340790855,1729828245615,-161.909786,0.00013698,2]
[340790857,1729828245625,-161.909786,0.00013698,2]
[340790859,1729828245635,-161.909786,0.00013698,2]
[340790861,1729828245645,-161.909786,0.00013698,2]
[340790863,1729828245655,-500.0,0.00013698,2]
[340790865,1729828245665,-300.06721162,0.00013698,2]
[340790867,1729828245675,-500.0,0.00013698,2]
[340790869,1729828245686,-500.0,0.00013698,2]
[340790871,1729828245697,-500.0,0.00013698,2]
[340790873,1729828245707,-500.0,0.00013698,2]
[340790875,1729828245716,-500.0,0.00013698,2]
[340790877,1729828245726,-500.0,0.00013698,2]
[340790879,1729828245736,-500.0,0.00013698,2]
[340790881,1729828245745,-500.0,0.00013698,2]
[340790884,1729828245754,-500.0,0.00013698,2]
[340790886,1729828245775,-500.0,0.00013698,2]
[340790888,1729828245785,-500.0,0.00013698,2]
[340790890,1729828245795,-387.60675016,0.00013698,2]
[340790892,1729828245805,-430.0,0.00013698,2]
[340790894,1729828245815,-500.0,0.00013698,2]
[340790897,1729828245826,-500.0,0.00013698,2]
[340790899,1729828245835,-500.0,0.00013698,2]
[340790901,1729828245846,-513.93265286,0.00013698,2]
[340790903,1729828245856,-500.0,0.00013698,2]
[340790905,1729828245866,-151.0,0.00013698,2]
[340790907,1729828245876,-151.0,0.00013698,2]
[340790909,1729828245886,-151.0,0.00013698,2]
[340790911,1729828245895,-151.0,0.00013698,2]
[340790913,1729828245906,-151.0,0.00013698,2]
[340790915,1729828245917,-500.0,0.00013698,2]
[340790917,1729828245930,-6175.98,0.00013698,2]
[340790920,1729828245940,-500.0,0.00013698,2]
[340790922,1729828245950,-500.0,0.00013698,2]
[340790924,1729828245960,-151.0,0.00013698,2]
[340790926,1729828245969,-203.93135,0.00013698,2]
[340790928,1729828245978,-500.0,0.00013698,2]
[340790930,1729828245988,-505.68,0.00013698,2]
[340790932,1729828245997,-500.0,0.00013698,2]
[340790934,1729828246008,-500.0,0.00013698,2]
[340790936,1729828246020,-789.57,0.00013698,2]
[340790938,1729828246031,-13049.57,0.00013698,2]
[340790940,1729828246042,-500.0,0.00013698,2]
[340790942,1729828246052,-500.0,0.00013698,2]
[340790944,1729828246061,-934.98,0.00013698,2]
[340790946,1729828246073,-2607.04,0.00013698,2]
[340790948,1729828246082,-500.0,0.00013698,2]
[340790951,1729828246092,-500.0,0.00013698,2]
[340790953,1729828246103,-4503.45,0.00013698,2]
[340790956,1729828246113,-500.0,0.00013698,2]
[340790958,1729828246123,-500.0,0.00013698,2]
[340790960,1729828246133,-500.0,0.00013698,2]
[340790961,1729828246142,-812.7,0.00013698,2]
[340790963,1729828246152,-181.2054107,0.00013698,2]
[340790965,1729828246162,-897.94,0.00013698,2]
[340790967,1729828246171,-1191.54,0.00013698,2]
[340790969,1729828246181,-1492.9,0.00013698,2]
[340790971,1729828246191,-724.45,0.00013698,2]
[340790973,1729828246200,-500.0,0.00013698,2]
[340790975,1729828246210,-500.0,0.00013698,2]
[340790977,1729828246219,-780.64,0.00013698,2]
[340790979,1729828246229,-151.0,0.00013698,2]
[340790981,1729828246240,-151.0,0.00013698,2]
[340790983,1729828246250,-151.0,0.00013698,2]
[340790985,1729828246260,-634.49,0.00013698,2]
[340790987,1729828246270,-151.0,0.00013698,2]
[340790989,1729828246279,-151.880154,0.00013698,2]
[340790991,1729828246289,-3621.84,0.00013698,2]
[340790993,1729828246298,-714.15,0.00013698,2]
[340790995,1729828246308,-500.0,0.00013698,2]
[340790997,1729828246318,-500.0,0.00013698,2]
[340790999,1729828246327,-374.190731,0.00013698,2]
[340791002,1729828246338,-374.190731,0.00013698,2]
[340791004,1729828246350,-1177.24,0.00013698,2]
[340791006,1729828246360,-374.190731,0.00013698,2]
[340791008,1729828246370,-374.190731,0.00013698,2]
[340791010,1729828246379,-374.190731,0.00013698,2]
[340791012,1729828246393,-952.66,0.00013698,2]
[340791014,1729828246402,-3712.83,0.00013698,2]
[340791016,1729828246412,-500.0,0.00013698,2]
[340791018,1729828246422,-374.190731,0.00013698,2]
[340791019,1729828246431,-500.0,0.00013698,2]
[340791020,1729828246441,-374.190731,0.00013698,2]
[340791021,1729828246450,-374.190731,0.00013698,2]
[340791022,1729828246460,-895.97,0.00013698,2]
[340791023,1729828246469,-374.190731,0.00013698,2]
[340791024,1729828246479,-374.190731,0.00013698,2]
[340791025,1729828246489,-405.55871076,0.00013698,2]
[340791026,1729828246499,-531.42,0.00013698,2]
[340791027,1729828246509,-151.0,0.00013698,2]
[340791029,1729828246519,-152.18136,0.00013698,2]
[340791031,1729828246529,-1111.15,0.00013698,2]
[340791033,1729828246538,-1093.28,0.00013698,2]
[340791035,1729828246548,-500.0,0.00013698,2]
[340791037,1729828246558,-540.805501,0.00013698,2]
[340791039,1729828246567,-1830.74,0.00013698,2]
[340791041,1729828246577,-540.805501,0.00013698,2]
[340791043,1729828246586,-540.805501,0.00013698,2]
[340791045,1729828246596,-540.805501,0.00013698,2]
[340791047,1729828246606,-540.805501,0.00013698,2]
[340791048,1729828246616,-1080.3,0.00013698,2]
[340791049,1729828246626,-596.39323174,0.00013698,2]
[340791050,1729828246636,-160.0,0.00013698,2]
[340791051,1729828246646,-540.805501,0.00013698,2]
[340791052,1729828246655,-540.805501,0.00013698,2]
[340791053,1729828246665,-540.805501,0.00013698,2]
[340791054,1729828246675,-540.805501,0.00013698,2]
[340791055,1729828246684,-890.64,0.00013698,2]
[340791056,1729828246693,-540.805501,0.00013698,2]
[340791057,1729828246703,-310.87789018,0.00013698,2]
[340791059,1729828246712,-500.0,0.00013698,2]
[340791061,1729828246721,-465.25868897,0.00013698,2]
[340791063,1729828246730,-160.0,0.00013698,2]
[340791065,1729828246740,-3187.83,0.00013698,2]
[340791066,1729828246750,-1132.01,0.00013698,2]
[340791067,1729828246759,-492.79574228,0.00013698,2]
[340791068,1729828246769,-759.31,0.00013698,2]
[340791069,1729828246778,-674.08,0.00013698,2]
[340791070,1729828246787,-1258.84,0.00013698,2]
[340791071,1729828246797,-151.0,0.00013698,2]
[340791072,1729828246807,-151.0,0.00013698,2]
[340791073,1729828246816,-151.0,0.00013698,2]
[340791074,1729828246826,-151.0,0.00013698,2]
[340791076,1729828246839,-830.47,0.00013698,2]
[340791078,1729828246849,-151.0,0.00013698,2]
[340791080,1729828246859,-600.3559158,0.00013698,2]
[340791082,1729828246870,-601.90288121,0.00013698,2]
[340791084,1729828246879,-158.462762,0.00013698,2]
[340791086,1729828246889,-502.4515437,0.00013698,2]
[340791088,1729828246898,-158.462762,0.00013698,2]
[340791090,1729828246908,-158.462762,0.00013698,2]
[340791092,1729828246918,-158.462762,0.00013698,2]
[340791094,1729828246927,-158.462762,0.00013698,2]
[340791096,1729828246937,-158.462762,0.00013698,2]
[340791098,1729828246946,-1178.4,0.00013698,2]
[340791100,1729828246956,-158.462762,0.00013698,2]
[340791103,1729828246966,-500.0,0.00013698,2]
[340791104,1729828246975,-625.0,0.00013698,2]
[340791106,1729828246985,-158.462762,0.00013698,2]
[340791108,1729828246995,-158.462762,0.00013698,2]
[340791110,1729828247005,-158.462762,0.00013698,2]
[340791112,1729828247015,-500.0,0.00013698,2]
[340791114,1729828247025,-546.920747,0.00013698,2]
[340791116,1729828247038,-546.920747,0.00013698,2]
[340791119,1729828247049,-151.0,0.00013698,2]
[340791121,1729828247059,-546.920747,0.00013698,2]
[340791122,1729828247069,-151.0,0.00013698,2]
[340791124,1729828247078,-546.920747,0.00013698,2]
[340791126,1729828247088,-151.0,0.00013698,2]
[340791128,1729828247098,-546.920747,0.00013698,2]
[340791130,1729828247107,-154.848495,0.00013698,2]
[340791132,1729828247117,-500.0,0.00013698,2]
[340791134,1729828247126,-500.0,0.00013699,2]
[340791136,1729828247138,-500.0,0.00013699,2]
[340791138,1729828247148,-231.370726,0.00013699,2]
[340791140,1729828247158,-231.370726,0.00013699,2]
[340791142,1729828247167,-2696.480998,0.00013699,2]
[340791144,1729828247178,-151.0,0.00013699,2]
[340791146,1729828247188,-151.0,0.00013699,2]
[340791147,1729828247198,-151.0,0.00013699,2]
[340791148,1729828247208,-151.0,0.00013699,2]
[340791149,1729828247218,-151.0,0.00013699,2]
[340791150,1729828247228,-151.0,0.00013699,2]
[340791151,1729828247237,-297.387349,0.00013699,2]
[340791152,1729828247247,-4309.056361,0.00013699,2]
[340791153,1729828247256,-500.0,0.00013699,2]
[340791154,1729828247266,-500.0,0.00013699,2]
[340791155,1729828247275,-500.0,0.00013699,2]
[340791156,1729828247285,-500.0,0.00013699,2]
[340791157,1729828247295,-197.3459598,0.00013699,2]
[340791159,1729828247304,-693.705385,0.00013699,2]
[340791161,1729828247313,-693.705385,0.00013699,2]
[340791163,1729828247323,-151.0,0.00013699,2]
[340791164,1729828247333,-158.462762,0.00013699,2]
[340791165,1729828247343,-158.462762,0.00013699,2]
[340791166,1729828247355,-279.248534,0.000137,2]
[340791167,1729828247364,-150.112269,0.000137,2]
[340791168,1729828247374,-150.112233,0.000137,2]
[340791169,1729828247384,-150.112233,0.000137,2]
[340791170,1729828247394,-153.0,0.000137,2]
[340791171,1729828247404,-151.0,0.00013793,2]
[340791172,1729828247414,-242.658676,0.00013793,2]
[340791173,1729828247425,-242.658676,0.00013793,2]
[340791174,1729828247435,-161.909786,0.00013793,2]
[340791175,1729828247444,-161.909786,0.00013793,2]
[340791176,1729828247454,-226.962123,0.00013793,2]
[340791177,1729828247464,-374.190731,0.00013793,2]
[340791178,1729828247474,-374.190731,0.00013793,2]
[340791179,1729828247484,-540.805501,0.00013793,2]
[340791180,1729828247494,-540.805501,0.00013793,2]
[340791181,1729828247504,-151.0,0.00013793,2]
[340791182,1729828247513,-546.920747,0.00013793,2]
[340791183,1729828247523,-11291.5236076,0.00013793,2]
[340791184,1729828247533,-150.112233,0.000138,2]
[340791185,1729828247542,-150.112233,0.000138,2]
[340791186,1729828247551,-150.112233,0.000138,2]
[340791187,1729828247561,-150.112233,0.000138,2]
[340791188,1729828247571,-150.112233,0.000138,2]
[340791189,1729828247580,-150.112233,0.000138,2]
[340791190,1729828247590,-254.529709,0.000138,2]
[340791191,1729828247602,-151.0,0.00013803,2]
[340791192,1729828247613,-151.0,0.00013803,2]
[340791193,1729828247625,-151.0,0.00013803,2]
[340791194,1729828247635,-151.0,0.00013803,2]
[340791195,1729828247646,-154.95727,0.00013803,2]
[340791196,1729828247657,-151.0,0.00013803,2]
[340791197,1729828247666,-151.0,0.00013803,2]
[340791198,1729828247676,-151.0,0.00013803,2]
[340791199,1729828247685,-151.0,0.00013803,2]
[340791200,1729828247695,-459.707949,0.00013803,2]
[340791201,1729828247704,-198.906741,0.00013803,2]
[340791202,1729828247715,-198.906741,0.00013803,2]
[340791203,1729828247725,-1039.64829,0.00013803,2]
[340791204,1729828247736,-309.65965,0.00013803,2]
[340791205,1729828247746,-309.65965,0.00013803,2]
[340791206,1729828247756,-358.392866,0.00013803,2]
[340791207,1729828247766,-358.392866,0.00013803,2]
[340791208,1729828247775,-1708.333963,0.00013803,2]
[340791209,1729828247785,-151.0,0.00013803,2]
[340791210,1729828247794,-1488.7919435,0.00013803,2]
[340791211,1729828248196,-219.5420195,0.00013803,2]
[340791212,1729828248206,-260.593652,0.00013803,2]
[340791213,1729828248216,-260.593652,0.00013803,2]
[340791214,1729828248226,-200.762276,0.00013803,2]
[340791215,1729828248236,-200.762276,0.00013803,2]
[340791216,1729828248246,-22583.0472153,0.00013812,2]
[340791217,1729828248256,-11291.5236076,0.00013812,2]
[340791218,1729828248266,-151.0,0.00013813,2]
[340791219,1729828248276,-151.0,0.00013813,2]
[340791220,1729828248286,-151.0,0.00013813,2]
[340791221,1729828248296,-167.780051,0.00013813,2]
[340791222,1729828248305,-167.780051,0.00013813,2]
[340791223,1729828248316,-157.359678,0.00013813,2]
[340791224,1729828248327,-151.0,0.00013813,2]
[340791225,1729828248338,-617.082187,0.00013813,2]
[340791226,1729828248349,-617.082187,0.00013813,2]